bitfinex/quotes_ETHUSD_20240621
["timestamp","ask_amount","ask_price","bid_price","bid_amount"]
[1718967455256,0.55,3502.5,3502.1,0.51707375]
[1718967455552,1.04469743,3502.7,3502.1,0.51707375]
[1718967455553,0.91551603,3502.6,3502.1,0.51707375]
[1718967455756,0.55,3502.5,3502.1,0.51707375]
[1718967455925,1.04469743,3502.5,3502.1,0.51707375]
[1718967456526,0.55,3502.5,3501.9,0.51707375]
[1718967456725,1.04469743,3502.6,3501.9,0.51707375]
[1718967457051,0.49469743,3502.5,3501.9,0.51707375]
[1718967457252,1.04469743,3502.6,3501.9,0.51707375]
[1718967457619,0.49470571,3502.5,3501.9,0.51707375]
[1718967457822,1.04470571,3502.6,3501.9,0.51707375]
[1718967458049,0.16642468,3502.5,3501.9,0.51707375]
[1718967458353,0.66113039,3502.5,3501.9,0.51707375]
[1718967458929,0.66113039,3502.5,3501.8,1.4474]
[1718967460789,0.49470757,3502.4,3501.8,1.4474]
[1718967461057,0.49470757,3502.5,3501.9,0.51707375]
[1718967461254,1.04470757,3502.6,3501.9,0.51707375]
[1718967461424,0.14563966,3502.5,3501.9,0.51707375]
[1718967461625,0.64034723,3502.5,3501.9,0.51707375]
[1718967463830,0.14563966,3502.5,3501.9,0.51707375]
[1718967464029,0.64035065,3502.5,3501.9,0.51707375]
[1718967464227,0.14563966,3502.5,3501.9,0.51707375]
[1718967464457,0.64035053,3502.5,3501.9,0.51707375]
[1718967464647,0.14563966,3502.5,3501.9,0.51707375]
[1718967464836,0.64035053,3502.5,3501.9,0.51707375]
[1718967465035,0.14563966,3502.5,3501.9,0.51707375]
[1718967465236,0.64035138,3502.5,3501.9,0.51707375]
[1718967467059,0.14563966,3502.5,3501.9,0.51707375]
[1718967467223,0.64035442,3502.5,3501.9,0.51707375]
[1718967467425,0.64035442,3502.5,3501.8,1.4474]
[1718967472436,0.49471476,3502.4,3501.8,1.4474]
[1718967472637,0.64035442,3502.5,3501.8,1.4474]
[1718967473564,0.4947256,3502.4,3501.8,1.4474]
[1718967473746,0.7044007,3502.4,3501.8,1.4474]
[1718967473947,0.2096751,3502.4,3501.8,1.4474]
[1718967474442,0.04962332,3502.3,3501.8,1.4474]
[1718967474644,0.49472925,3502.2,3501.5,1.4474]
[1718967474849,0.80650149,3502.1,3501.5,1.4474]
[1718967475368,0.80650149,3502.1,3501.3,7.88707375]
[1718967475369,1.04476872,3502.0,3501.3,7.88707375]
[1718967476871,0.49476398,3501.9,3501.6,1.4474]
[1718967477074,0.49476398,3502.2,3501.6,1.64384738]
[1718967477271,0.04962332,3502.3,3501.6,1.64384738]
[1718967477643,0.5443873,3502.3,3501.6,1.64384738]
[1718967477849,0.5443873,3502.3,3501.6,0.19644738]
[1718967477850,2.47082332,3502.3,3501.6,0.19644738]
[1718967478055,0.49476398,3502.2,3501.5,0.51707375]
[1718967478780,0.04962332,3502.3,3501.5,0.51707375]
[1718967479078,0.49476398,3502.2,3501.5,0.51707375]
[1718967479388,0.04962332,3502.3,3501.3,1.96447375]
[1718967479389,0.49476398,3502.1,3501.3,1.96447375]
[1718967479694,1.04476811,3502.0,3501.3,1.96447375]
[1718967479861,0.49476811,3501.9,3501.3,1.96447375]
[1718967480252,0.49476811,3501.8,3501.3,1.96447375]
[1718967480583,0.49476811,3501.9,3501.3,1.96447375]
[1718967481373,0.49476811,3501.8,3501.3,1.96447375]
[1718967481582,0.49476811,3501.9,3501.3,1.96447375]
[1718967482377,0.49476896,3501.9,3501.3,1.96447375]
[1718967483146,0.49476896,3501.8,3501.1,0.51707375]
[1718967483342,0.69835995,3501.8,3501.1,0.51707375]
[1718967483574,0.49478029,3501.7,3501.1,0.51707375]
[1718967483779,0.49478029,3501.9,3501.1,0.51707375]
[1718967483979,0.49478029,3501.8,3501.0,1.4474]
[1718967484280,0.89925832,3501.7,3500.9,0.51707375]
[1718967484449,0.49478029,3501.6,3500.9,0.51707375]
[1718967484644,2.4743,3501.5,3500.7,1.4474]
[1718967484881,0.49478029,3501.4,3500.7,1.4474]
[1718967485073,0.55,3501.3,3500.7,1.4474]
[1718967485860,1.04485329,3501.3,3500.7,1.4474]
[1718967487146,1.04485329,3501.3,3501.0,0.51707375]
[1718967487147,0.49485329,3501.3,3501.0,0.51707375]
[1718967487348,0.49485329,3501.6,3501.0,0.51707375]
[1718967487548,3.49485329,3502.0,3501.0,0.51707375]
[1718967487859,0.49485329,3501.9,3501.3,0.51707375]
[1718967488046,0.49485329,3501.9,3501.5,0.51707375]
[1718967488243,3.54447661,3502.3,3501.5,0.51707375]
[1718967488529,3.49485329,3502.2,3501.5,0.51707375]
[1718967488780,0.49470702,3502.1,3501.5,0.51707375]
[1718967488948,3.54433034,3502.3,3501.5,0.51707375]
[1718967489149,0.49470702,3502.2,3501.5,0.51707375]
[1718967489479,0.49470702,3502.2,3501.5,0.57418603]
[1718967490383,0.49470702,3502.2,3501.5,0.51707375]
[1718967491052,0.49470702,3502.2,3501.7,0.51707375]
[1718967491485,3.49470702,3502.2,3501.7,0.51707375]
[1718967491782,0.49470352,3502.1,3501.7,0.51707375]
[1718967492186,0.04962332,3502.3,3501.7,0.51707375]
[1718967492757,0.04962332,3502.3,3501.8,1.4474]
[1718967492991,0.49470269,3502.4,3501.9,0.19644738]
[1718967493369,0.49470269,3502.7,3502.0,0.51707375]
[1718967494878,0.49463677,3502.7,3502.2,0.51707375]
[1718967495677,0.49463677,3502.7,3502.0,0.51707375]
[1718967497809,0.49463677,3502.7,3502.5,0.51707375]
[1718967498017,3.04966103,3503.1,3502.3,0.51707375]
[1718967498223,0.49460116,3502.7,3502.3,0.51707375]
[1718967498527,0.49460116,3502.9,3502.3,0.51707375]
[1718967501112,0.7860461,3503.0,3502.3,0.51707375]
[1718967501315,0.49461504,3502.9,3502.3,0.51707375]
[1718967501529,0.4946156,3502.9,3502.3,0.51707375]
[1718967502285,0.49462503,3502.9,3502.3,0.51707375]
[1718967502988,0.49462503,3502.9,3502.7,0.51707375]
[1718967503213,0.49462503,3503.0,3502.7,0.51707375]
[1718967503581,3.0,3503.0,3502.7,0.51707375]
[1718967503811,0.28324757,3503.4,3502.9,0.51707375]
[1718967504110,0.76203158,3503.4,3502.4,1.4474]
[1718967504336,0.49452682,3503.4,3502.9,0.51707375]
[1718967505136,0.49452682,3503.5,3502.9,0.51707375]
[1718967505729,0.49452682,3503.5,3502.7,0.51707375]
[1718967506401,3.49452682,3503.5,3502.7,0.51707375]
[1718967506600,3.16522727,3503.4,3502.7,0.51707375]
[1718967506795,5.571629,3503.3,3502.7,0.51707375]
[1718967506995,5.571629,3503.2,3502.7,0.51707375]
[1718967507204,2.571629,3503.1,3502.7,0.51707375]
[1718967507423,5.57165924,3503.0,3502.7,0.51707375]
[1718967507618,2.57165924,3502.9,3502.7,0.51707375]
[1718967507816,5.57165924,3502.8,3502.4,1.4474]
[1718967508016,3.0,3503.0,3502.4,1.4474]
[1718967508017,2.57165924,3502.7,3502.4,1.4474]
[1718967508295,2.57165924,3502.6,3502.4,1.4474]
[1718967508534,2.57165924,3502.5,3502.4,1.96447375]
[1718967510145,2.57165924,3502.5,3501.6,7.37]
[1718967510146,5.57165924,3502.5,3502.2,0.51707375]
[1718967510300,2.57165924,3502.4,3502.2,0.51707375]
[1718967510497,2.57198417,3502.3,3502.2,0.51707375]
[1718967510936,2.07737183,3502.3,3502.2,0.51707375]
[1718967511119,2.57198127,3502.3,3502.0,0.51707375]
[1718967511422,5.57198127,3502.2,3502.0,0.51707375]
[1718967511632,2.57198127,3502.1,3502.0,0.51707375]
[1718967511826,5.57198127,3502.1,3502.0,0.51707375]
[1718967513619,3.0,3502.1,3502.0,0.51707375]
[1718967513817,2.57213154,3502.1,3502.0,0.51707375]
[1718967514035,5.57213154,3502.1,3502.0,0.51707375]
[1718967516862,3.0,3502.1,3502.0,0.51707375]
[1718967517010,2.57207133,3502.1,3502.0,0.51707375]
[1718967517215,5.57207133,3502.1,3502.0,0.51707375]
[1718967520065,5.57210522,3502.1,3502.0,0.51707375]
[1718967520580,5.572068,3502.1,3502.0,0.51707375]
[1718967521244,5.57207893,3502.1,3502.0,0.51707375]
[1718967523149,3.49462841,3502.1,3502.0,0.51707375]
[1718967523377,2.57207904,3502.1,3502.0,0.51707375]
[1718967523600,5.57208172,3502.1,3502.0,0.51707375]
[1718967526485,5.57205905,3502.1,3502.0,0.51707375]
[1718967527557,2.57205905,3502.1,3502.0,0.51707375]
[1718967529188,5.57205905,3502.1,3502.0,0.51707375]
[1718967529486,5.57218171,3502.1,3502.0,0.51707375]
[1718967529850,5.57218171,3502.1,3501.5,1.4474]
[1718967530021,2.07767214,3502.0,3501.5,1.4474]
[1718967530192,0.49468384,3501.9,3501.5,1.4474]
[1718967530398,2.07767214,3501.8,3501.5,1.4474]
[1718967530589,0.49468384,3501.7,3501.6,0.51707375]
[1718967530950,2.57238157,3501.7,3501.6,0.51707375]
[1718967532643,3.0,3502.1,3501.6,0.51707375]
[1718967532947,2.57225563,3502.0,3501.9,0.51707375]
[1718967535916,2.5722464,3502.0,3501.9,0.51707375]
[1718967539046,2.57225252,3502.0,3501.9,0.51707375]
[1718967541247,2.07758975,3502.0,3501.9,0.51707375]
[1718967541544,2.57228515,3502.0,3501.9,0.51707375]
[1718967544326,0.49467022,3502.0,3501.9,0.51707375]
[1718967544536,3.49460835,3502.3,3502.2,0.51707375]
[1718967544701,2.57195492,3502.3,3502.2,0.51707375]
[1718967544902,5.57195492,3502.3,3502.2,0.51707375]
[1718967545915,3.49460027,3502.3,3502.2,0.51707375]
[1718967546340,0.49460027,3502.3,3502.2,0.51707375]
[1718967546642,0.49460027,3502.6,3502.5,0.51707375]
[1718967547711,0.49457756,3502.6,3502.5,0.51707375]
[1718967548112,0.49457817,3502.6,3502.5,0.51707375]
[1718967548746,0.49458275,3502.6,3502.5,0.51707375]
[1718967550918,3.0,3502.7,3502.5,0.51707375]
[1718967551151,3.0,3502.7,3501.4,0.02633647]
[1718967551152,1.04411349,3502.6,3501.7,0.51707375]
[1718967551514,1.04411349,3502.6,3502.1,0.51707375]
[1718967551719,2.4974,3502.5,3502.1,0.51707375]
[1718967552027,0.49458703,3502.4,3502.1,0.51707375]
[1718967552219,3.49458703,3502.4,3502.1,0.51707375]
[1718967552453,0.49458703,3502.3,3502.1,0.51707375]
[1718967554071,3.0,3502.4,3502.3,0.51707375]
[1718967554353,0.49462434,3502.4,3502.3,0.51707375]
[1718967554556,3.49462434,3502.4,3502.3,0.51707375]
[1718967557222,3.0,3502.4,3502.3,0.51707375]
[1718967557435,2.4974,3502.5,3502.3,0.51707375]
[1718967557725,0.49463119,3502.4,3502.3,0.51707375]
[1718967557924,3.49463119,3502.4,3502.3,0.51707375]
[1718967559759,4.09383431,3502.4,3501.9,3.736]
[1718967560061,0.49463119,3502.3,3501.9,3.736]
[1718967560232,3.59920312,3502.4,3501.9,3.736]
[1718967560562,0.49466854,3502.3,3501.9,3.736]
[1718967561722,0.49466854,3502.3,3501.9,4.25307375]
[1718967563249,3.59920312,3502.4,3501.9,4.25307375]
[1718967563441,0.49467021,3502.3,3501.9,4.25307375]
[1718967563859,0.49467021,3502.3,3501.9,3.736]
[1718967564058,0.49468061,3502.3,3501.9,3.736]
[1718967566451,0.49468747,3502.3,3501.9,3.736]
[1718967566871,0.0496564,3502.2,3501.9,3.736]
[1718967569153,0.0496564,3502.2,3501.9,5.557]
[1718967569357,0.0496564,3502.2,3502.1,1.96447375]
[1718967569566,0.49451803,3503.6,3502.9,0.51707375]
[1718967569772,0.49451803,3503.6,3503.3,0.51707375]
[1718967570860,0.49451803,3503.6,3503.4,0.51707375]
[1718967571574,3.49451803,3503.6,3503.4,0.51707375]
[1718967571890,0.49451803,3503.5,3503.4,0.51707375]
[1718967572189,0.49451803,3503.5,3503.3,0.51707375]
[1718967572688,3.0,3503.6,3503.3,0.51707375]
[1718967572864,0.49447218,3503.5,3503.3,0.51707375]
[1718967573066,0.49447218,3503.9,3503.3,0.51707375]
[1718967573266,3.0,3503.9,3503.3,0.51707375]
[1718967573457,0.49447218,3503.8,3503.3,0.51707375]
[1718967573658,0.98532566,3503.9,3503.3,0.51707375]
[1718967574868,0.98532566,3503.9,3503.5,0.51707375]
[1718967575514,0.98532566,3503.9,3502.9,3.736]
[1718967575657,2.4213,3503.7,3502.9,3.736]
[1718967575861,0.4945204,3503.6,3502.9,3.736]
[1718967576167,0.55,3503.5,3502.9,3.736]
[1718967576387,1.04453821,3503.6,3502.9,3.736]
[1718967576576,1.73179847,3503.6,3502.9,3.736]
[1718967576776,0.49453821,3503.5,3502.9,3.736]
[1718967576982,0.49454037,3503.5,3502.9,3.736]
[1718967579074,0.49454122,3503.5,3502.9,3.736]
[1718967579271,1.23847137,3503.5,3502.9,3.736]
[1718967579472,0.49454122,3503.4,3502.9,3.736]
[1718967579701,0.49454122,3503.4,3503.0,0.51707375]
[1718967580679,3.0,3503.6,3503.0,0.51707375]
[1718967580680,0.49454122,3503.5,3503.0,0.51707375]
[1718967582173,0.49448671,3503.5,3503.0,0.51707375]
[1718967582896,2.47906527,3504.0,3503.0,0.51707375]
[1718967582897,3.98534019,3503.9,3503.0,0.51707375]
[1718967583078,1.14092726,3503.8,3503.0,0.51707375]
[1718967583278,0.49448671,3503.7,3503.0,0.51707375]
[1718967585199,0.64644055,3503.8,3503.0,0.51707375]
[1718967585507,0.49448593,3503.7,3503.0,0.51707375]
[1718967585666,0.49447445,3503.8,3503.0,0.51707375]
[1718967586499,0.49447334,3503.8,3503.0,0.51707375]
[1718967586707,0.49447334,3503.8,3503.3,0.51707375]
[1718967587485,0.49447334,3503.8,3503.0,0.51707375]
[1718967587680,0.49447334,3503.8,3503.2,0.51707375]
[1718967587882,1.0918272,3503.8,3503.2,0.51707375]
[1718967588087,0.49447334,3503.7,3503.2,0.51707375]
[1718967588285,0.59735386,3503.8,3503.2,0.51707375]
[1718967588611,0.49449486,3503.7,3503.2,0.51707375]
[1718967590598,2.3191,3503.6,3503.2,0.51707375]
[1718967590787,0.86420973,3503.5,3503.2,0.51707375]
[1718967591004,0.49449486,3503.4,3503.2,0.51707375]
[1718967591748,3.36971487,3503.5,3503.2,0.51707375]
[1718967591749,0.98904024,3503.3,3503.2,0.51707375]
[1718967593213,0.98904024,3503.3,3503.0,0.51707375]
[1718967593417,0.49452011,3503.2,3503.0,0.51707375]
[1718967594815,0.49452013,3503.3,3503.0,0.51707375]
[1718967595031,0.49452001,3503.1,3503.0,0.51707375]
[1718967595215,0.49452013,3503.3,3503.0,0.51707375]
[1718967595420,0.49451463,3503.2,3503.0,0.51707375]
[1718967597899,0.49452013,3503.3,3503.0,0.51707375]
[1718967598102,0.49450534,3503.2,3503.0,0.51707375]
[1718967600866,0.49450815,3503.1,3503.0,0.51707375]
[1718967601007,2.93180815,3503.2,3502.9,3.736]
[1718967601208,2.2741,3503.0,3502.2,7.88707375]
[1718967601425,0.49450815,3502.9,3502.2,7.88707375]
[1718967601658,0.49450815,3502.8,3502.2,7.88707375]
[1718967601958,0.49450815,3502.8,3501.7,5.1834]
[1718967601959,0.49450815,3502.7,3502.1,0.51707375]
[1718967602272,0.49450815,3502.6,3502.2,1.4474]
[1718967602570,0.49452013,3503.3,3501.8,0.51834]
[1718967602571,0.49450815,3502.5,3502.4,1.4474]
[1718967602869,0.49452013,3503.3,3502.8,0.51707375]
[1718967603155,0.49448051,3503.2,3502.9,1.4474]
[1718967603360,0.49447725,3503.1,3502.9,2.01744738]
[1718967603558,0.49447725,3503.5,3503.0,0.04257673]
[1718967603873,0.4944649,3503.4,3503.0,0.04257673]
[1718967604054,0.4944649,3503.5,3503.0,0.04257673]
[1718967604290,0.4944649,3503.4,3503.0,0.04257673]
[1718967604427,0.4944649,3503.5,3503.0,0.67388652]
[1718967605944,0.04965497,3503.6,3503.0,0.67388652]
[1718967606136,0.49447364,3503.5,3503.0,0.67388652]
[1718967606560,0.04965497,3503.6,3503.0,0.67388652]
[1718967606561,0.49447221,3503.4,3503.3,0.51707375]
[1718967606759,0.49447221,3503.5,3503.4,1.4474]
[1718967607059,0.49441825,3503.5,3503.4,1.64938695]
[1718967607261,0.49441825,3504.1,3503.4,1.64938695]
[1718967607430,0.2862,3504.2,3503.4,1.64938695]
[1718967607431,0.49441825,3504.0,3503.9,0.51707375]
[1718967607625,0.2862,3504.2,3503.9,0.51707375]
[1718967607626,0.49441825,3504.1,3503.9,0.51707375]
[1718967607866,0.49441825,3504.1,3504.0,1.4474]
[1718967608228,0.78050256,3504.2,3504.1,0.51707375]
[1718967609260,0.2862,3504.2,3504.1,0.51707375]
[1718967609464,0.78049929,3504.2,3504.1,0.51707375]
[1718967610277,0.04962239,3504.8,3504.1,0.51707375]
[1718967610482,0.2862,3504.6,3504.5,0.51707375]
[1718967610677,0.78047286,3504.6,3504.5,0.51707375]
[1718967610983,0.78047286,3504.6,3504.5,4.25307375]
[1718967611190,0.2862,3504.6,3504.5,4.25307375]
[1718967611461,0.2862,3505.2,3504.5,4.25307375]
[1718967611634,0.2862,3505.0,3504.7,0.51707375]
[1718967611835,0.49424946,3505.1,3504.7,0.51707375]
[1718967611836,0.2862,3504.8,3504.7,0.51707375]
[1718967612034,0.78044946,3504.8,3504.7,0.51707375]
[1718967612286,0.2862,3504.8,3504.5,3.736]
[1718967612465,0.78047211,3504.8,3504.5,3.736]
[1718967612664,0.2862,3504.6,3504.5,4.25307375]
[1718967612858,2.4079,3505.2,3504.5,3.736]
[1718967613051,2.4079,3505.2,3502.6,12.28]
[1718967613052,2.4079,3504.5,3503.5,0.51707375]
[1718967613590,0.49441809,3504.4,3503.5,0.51707375]
[1718967613946,3.49441809,3504.4,3503.5,0.51707375]
[1718967614146,1.0846499,3504.3,3503.5,0.51707375]
[1718967614346,0.49441809,3504.2,3503.5,0.51707375]
[1718967615244,0.59023181,3504.3,3503.5,0.51707375]
[1718967615443,0.4944429,3504.2,3503.5,0.51707375]
[1718967615880,0.4944429,3504.2,3503.7,0.51707375]
[1718967616076,0.4944429,3504.3,3503.7,0.51707375]
[1718967616280,0.4944429,3504.3,3504.1,0.51707375]
[1718967616604,0.0496389,3505.3,3504.4,0.51707375]
[1718967616911,0.75816046,3505.2,3504.4,0.51707375]
[1718967617056,0.49429465,3505.1,3504.4,0.51707375]
[1718967618589,0.49428451,3505.0,3504.4,0.51707375]
[1718967618913,0.49428451,3504.9,3504.4,0.51707375]
[1718967619378,0.49428451,3504.8,3504.4,0.51707375]
[1718967619583,0.49428451,3505.1,3504.4,0.51707375]
[1718967620166,0.87506343,3505.1,3504.4,0.51707375]
[1718967620363,0.49428451,3505.0,3504.1,4.25307375]
[1718967621088,0.49428451,3505.0,3504.3,0.51707375]
[1718967621292,0.49428451,3505.0,3504.5,0.51707375]
[1718967621499,0.26386581,3505.2,3504.5,0.51707375]
[1718967621660,0.49429303,3505.1,3504.5,0.51707375]
[1718967621861,0.49426619,3505.0,3504.7,0.51707375]
[1718967622090,0.49426619,3505.0,3504.1,3.736]
[1718967622091,0.49426619,3505.2,3504.5,0.51707375]
[1718967622598,0.49424533,3505.1,3504.5,0.51707375]
[1718967622900,0.49424533,3505.0,3504.8,0.51707375]
[1718967623091,0.49424533,3505.2,3504.8,0.51707375]
[1718967623300,0.49424784,3505.1,3504.8,0.51707375]
[1718967623487,0.49424784,3505.2,3504.8,0.51707375]
[1718967624089,0.49424784,3505.2,3504.5,0.51707375]
[1718967624473,0.49429056,3505.1,3504.5,0.51707375]
[1718967624701,0.49429148,3505.0,3504.5,0.51707375]
[1718967624902,0.49429148,3505.2,3504.5,0.51707375]
[1718967625079,0.49429148,3505.1,3504.5,0.51707375]
[1718967625267,0.49429148,3505.2,3504.5,0.51707375]
[1718967625601,0.49429148,3505.2,3504.7,0.51707375]
[1718967625897,0.49429148,3505.1,3504.7,0.51707375]
[1718967626198,0.49429148,3505.0,3504.7,0.51707375]
[1718967626370,0.49429148,3505.3,3504.9,0.51707375]
[1718967627696,0.49424787,3505.2,3504.9,0.51707375]
[1718967627996,3.0,3505.4,3504.7,0.51707375]
[1718967628205,0.49422918,3505.3,3504.8,0.02330278]
[1718967628386,1.49471918,3505.9,3505.1,0.51707375]
[1718967628588,0.49422918,3505.8,3504.9,0.51707375]
[1718967628800,0.49422918,3505.8,3505.0,0.03381097]
[1718967629095,0.49422918,3505.8,3504.4,1.4474]
[1718967629096,0.49422918,3505.7,3505.5,0.51707375]
[1718967629318,0.49422918,3505.9,3505.3,0.51707375]
[1718967629673,0.49422918,3505.9,3505.7,0.51707375]
[1718967630573,3.2862,3506.0,3505.5,0.51707375]
[1718967630773,0.49416647,3505.9,3505.5,0.51707375]
[1718967631101,0.2862,3506.0,3505.7,0.51707375]
[1718967631301,0.2862,3506.0,3505.5,0.51707375]
[1718967631302,0.49414612,3505.9,3505.5,0.51707375]
[1718967631484,0.49414612,3505.9,3505.0,0.05704951]
[1718967631485,0.49414612,3505.9,3505.7,0.51707375]
[1718967631873,0.2862,3506.2,3505.9,0.51707375]
[1718967632068,0.4941409,3506.1,3505.7,0.51707375]
[1718967632390,0.49410726,3506.0,3505.7,0.51707375]
[1718967632589,0.49410726,3506.4,3505.7,0.51707375]
[1718967632791,0.49410726,3506.3,3505.9,0.51707375]
[1718967632992,0.49410726,3506.4,3505.9,0.51707375]
[1718967633194,0.49410726,3506.3,3506.1,0.51707375]
[1718967633397,2.4106,3506.9,3506.1,0.51707375]
[1718967633398,3.49410726,3506.8,3506.1,0.51707375]
[1718967633582,0.49410726,3506.7,3506.1,0.51707375]
[1718967633782,3.24106,3506.8,3506.1,0.51707375]
[1718967633984,0.49407847,3506.7,3505.8,0.51707375]
[1718967634197,0.49407847,3506.7,3506.1,0.51707375]
[1718967634387,0.61457385,3506.6,3505.8,0.51707375]
[1718967634713,3.24106,3506.8,3505.8,0.51707375]
[1718967634714,0.49407847,3506.5,3505.8,0.51707375]
[1718967634875,0.49407847,3506.7,3505.8,4.25307375]
[1718967635206,0.49407847,3506.6,3505.8,4.25307375]
[1718967635507,0.49407847,3506.5,3505.8,4.25307375]
[1718967635706,1.05924447,3506.7,3505.8,4.25307375]
[1718967635877,1.04407847,3506.6,3505.8,4.25307375]
[1718967636071,0.49407847,3506.5,3505.8,4.25307375]
[1718967636498,0.04961703,3506.4,3505.8,4.25307375]
[1718967636698,0.49407847,3506.3,3505.8,4.25307375]
[1718967636935,0.49409643,3506.2,3505.8,4.25307375]
[1718967637417,0.49410601,3506.1,3505.8,4.25307375]
[1718967637576,0.49410601,3506.3,3505.8,4.25307375]
[1718967638082,0.49410601,3506.3,3505.8,4.67838113]
[1718967638386,3.0,3506.8,3506.1,0.51707375]
[1718967638590,0.49403485,3506.7,3506.3,0.51707375]
[1718967638996,0.49403485,3507.2,3506.3,0.51707375]
[1718967639329,3.0495579,3507.3,3507.1,0.51707375]
[1718967639503,2.2999,3508.3,3507.0,3.736]
[1718967639838,0.494035,3507.6,3507.0,3.736]
[1718967640042,0.49393334,3507.5,3507.0,3.736]
[1718967640183,0.2862,3508.0,3507.1,0.51707375]
[1718967640548,0.2862,3507.8,3507.1,0.51707375]
[1718967641041,0.2862,3507.6,3507.1,0.51707375]
[1718967641241,0.78012894,3507.5,3507.2,1.96447375]
[1718967641522,0.78012894,3507.5,3507.3,0.57004738]
[1718967641523,0.2862,3507.5,3507.3,0.57004738]
[1718967642279,0.28449245,3508.3,3507.3,0.57004738]
[1718967642280,0.2862,3508.2,3507.3,0.57004738]
[1718967642630,0.2862,3508.0,3507.2,0.51707375]
[1718967643503,0.33579986,3508.4,3507.2,0.51707375]
[1718967643703,0.2862,3508.2,3507.2,0.51707375]
[1718967643937,0.2862,3508.0,3507.0,3.736]
[1718967644209,0.49388636,3508.1,3507.0,3.736]
[1718967644210,0.2862,3507.8,3507.0,3.736]
[1718967644423,0.2862,3507.6,3507.0,3.736]
[1718967644630,0.78008636,3507.5,3507.0,3.736]
[1718967644829,0.49388636,3507.4,3507.0,3.736]
[1718967645634,0.2862,3507.6,3507.0,3.736]
[1718967645793,0.7801708,3507.5,3507.0,3.736]
[1718967646004,0.49397874,3507.4,3507.0,3.736]
[1718967646450,0.49397874,3507.4,3507.0,4.16130738]
[1718967646930,0.2862,3507.7,3507.0,4.16130738]
[1718967647253,3.0,3507.8,3507.0,4.16130738]
[1718967647254,0.2862,3507.5,3507.0,3.736]
[1718967648093,0.2862,3507.7,3507.0,3.736]
[1718967648326,0.2862,3507.5,3507.0,3.736]
[1718967649195,0.2862,3507.7,3507.0,3.736]
[1718967649406,0.2862,3507.5,3507.0,4.16130738]
[1718967650257,0.2862,3507.5,3507.1,0.51707375]
[1718967651470,0.2862,3507.9,3507.2,0.05297742]
[1718967651629,0.2862,3507.9,3507.3,1.4474]
[1718967652425,0.2862,3507.8,3507.2,0.47313586]
[1718967652639,0.2862,3507.8,3507.1,0.51707375]
[1718967653114,0.2862,3507.8,3507.0,3.736]
[1718967653337,0.2862,3507.6,3507.0,3.736]
[1718967654455,0.2862,3508.3,3507.0,3.736]
[1718967654757,0.2862,3507.9,3507.0,3.736]
[1718967654920,0.2862,3507.9,3506.4,7.37]
[1718967654921,2.5482,3507.7,3506.4,7.37]
[1718967655116,0.2862,3507.5,3506.4,7.37]
[1718967655321,0.4940028,3507.6,3506.4,7.37]
[1718967655322,0.2862,3507.3,3506.4,7.37]
[1718967655535,2.4216,3507.1,3506.4,7.37]
[1718967655851,0.7802028,3507.0,3506.4,7.37]
[1718967656149,0.7802028,3506.9,3506.4,7.37]
[1718967656348,0.4940028,3506.8,3506.4,7.37]
[1718967656539,0.4940028,3506.8,3506.2,3.736]
[1718967657652,0.4940028,3506.8,3506.2,4.16130738]
[1718967658082,0.2862,3506.9,3506.2,4.16130738]
[1718967658268,0.49406012,3506.8,3506.2,4.16130738]
[1718967658592,3.0,3507.0,3506.2,4.16130738]
[1718967658593,0.49402575,3506.7,3506.2,4.16130738]
[1718967658785,0.49402575,3506.9,3506.3,0.46783811]
[1718967659074,0.49400188,3506.8,3506.6,0.51707375]
[1718967659275,0.49399408,3506.7,3506.6,0.51707375]
[1718967659474,0.49399408,3506.9,3506.3,0.46783811]
[1718967659652,0.49399408,3506.8,3506.4,0.47209119]
[1718967659858,0.2862,3507.3,3506.6,0.51707375]
[1718967659859,0.49399408,3507.2,3506.6,0.51707375]
[1718967660047,0.0495339,3507.0,3506.6,0.51707375]
[1718967660247,0.49399408,3506.9,3506.6,0.51707375]
[1718967660457,0.49399408,3506.9,3506.4,0.47209119]
[1718967660777,2.2912,3506.8,3506.2,3.736]
[1718967661076,0.2862,3506.6,3505.7,7.37]
[1718967661252,0.72817798,3506.7,3505.7,7.37]
[1718967661253,0.2862,3506.4,3505.7,7.37]
[1718967661453,0.2862,3506.2,3505.7,7.31344991]
[1718967661656,0.2862,3506.0,3505.7,7.31344991]
[1718967661856,0.4942126,3505.9,3505.2,3.736]
[1718967662068,2.4918,3505.8,3505.2,3.736]
[1718967662378,1.0442126,3505.7,3505.2,3.736]
[1718967662547,0.4942126,3505.6,3505.2,3.736]
[1718967663261,3.55,3505.7,3505.2,3.736]
[1718967663580,3.55,3505.7,3505.0,7.31344991]
[1718967663581,0.49426479,3505.6,3505.0,7.31344991]
[1718967664074,3.55,3505.7,3505.0,7.31344991]
[1718967664277,0.49425859,3505.6,3505.0,7.31344991]
[1718967665052,0.49425859,3505.6,3505.0,8.09650228]
[1718967665255,0.49425859,3505.6,3504.5,12.28]
[1718967665256,7.505607,3505.5,3504.5,0.51707375]
[1718967665546,7.505607,3505.5,3504.3,3.736]
[1718967665547,3.78045859,3505.4,3504.3,3.736]
[1718967665866,1.47730445,3505.3,3504.3,3.736]
[1718967666067,0.49425859,3505.2,3504.3,4.25307375]
[1718967666280,0.55,3505.3,3504.3,3.736]
[1718967666492,2.87134849,3505.2,3504.3,3.736]
[1718967666656,0.49434849,3505.1,3504.3,3.736]
[1718967666863,3.0,3505.1,3504.3,3.736]
[1718967667159,0.49434697,3505.0,3504.4,0.51707375]
[1718967667575,0.49434697,3505.0,3504.4,0.53524498]
[1718967667879,3.0,3505.1,3504.4,0.51707375]
[1718967668082,0.49429947,3505.0,3504.6,0.51707375]
[1718967668248,3.49429947,3505.1,3504.6,0.51707375]
[1718967668581,3.0,3505.0,3504.7,0.01448574]
[1718967668743,3.0,3505.2,3504.7,0.05705891]
[1718967668943,0.2862,3506.1,3504.8,0.0570548]
[1718967669147,0.49419327,3506.0,3504.8,0.25003102]
[1718967669391,0.2862,3506.1,3504.8,0.25003102]
[1718967669565,0.49418029,3506.0,3504.8,0.25003102]
[1718967669881,2.57357339,3506.7,3504.8,0.25003102]
[1718967670044,0.75151256,3506.6,3504.8,0.25003102]
[1718967670257,0.49415522,3506.5,3504.8,0.25003102]
[1718967670782,0.49415522,3506.5,3504.9,0.51707375]
[1718967671099,0.49415522,3506.5,3505.0,0.05704747]
[1718967671299,0.49415522,3506.5,3505.1,3.736]
[1718967671300,0.55,3506.4,3505.1,3.736]
[1718967671527,0.55,3506.4,3505.8,0.51707375]
[1718967671710,0.55,3506.4,3505.1,3.736]
[1718967671711,0.0495339,3507.0,3505.1,7.31344991]